Cogmind - Beta 10.2 *** ADVENTURER MODE // 2020.11.06 @ 10:06:05 // Winter2019/RPGLIKE Player: Kurtz Result: Self-destructed Performance ------------- Evolutions (1) 500 Regions Visited (2) 400 Robots Destroyed (68) 340 Value Destroyed (1882) 1882 Prototype IDs (6) 120 Alien Tech Used (0) 0 Bonus (162) 162 TOTAL SCORE: 3404 Bonus ------- High Alert Combat Kills 162 Cogmind --------- Core Integrity 457/600 Matter 300/300 Energy 715/715 System Corruption 0% Temperature Cool (0) Movement Treading (160) Location -9/Materials Parts ------- > --- POWER (2) -------- Ion Engine Improved Ion Engine > --- PROPULSION (3) --- Light Treads Light Treads > --- UTILITY (6) ------ Heat Sink Disposable Heat Sink Compact Battery Structural Scanner Improved Sensor Array Light Armor Plating > --- WEAPON (2) ------- Beam Rifle Advanced Beam Cannon > --- INVENTORY (4) ---- Signal Interpreter Insulated Plating Shield Generator Advanced Beam Cannon Peak State ------------ > --- POWER ------------ Ion Engine Improved Ion Engine > --- PROPULSION ------- Light Treads Light Treads > --- UTILITY ---------- Heat Sink Disposable Heat Sink Compact Battery Structural Scanner Improved Sensor Array Light Armor Plating > --- WEAPON ----------- Beam Rifle Advanced Beam Cannon > --- INVENTORY -------- Signal Interpreter Insulated Plating Shield Generator Advanced Beam Cannon [Rating: 20] Favorites ----------- Power Ion Engine Engine Ion Engine Propulsion Aluminum Leg Treads Light Treads Leg Aluminum Leg Utility Structural Scanner Device Structural Scanner Storage Medium Battery Protection Light Armor Plating Weapon Particle Cannon Energy Gun Particle Gun Energy Cannon Particle Cannon Launcher Grenade Launcher Build | -11 -10 -9 ------- Run | Scr Mat Mat Slots Evolved 9 | 3 . 6 Power 1 | . . 1 Propulsion 2 | 1 . 1 Utility 5 | 1 . 4 Weapon 1 | 1 . . Parts Attached 32 | 5 6 21 Power 2 | 1 . 1 Engine 2 | 1 . 1 Core . | . . . Reactor . | . . . Propulsion 6 | 2 . 4 Treads 3 | . . 3 Leg 3 | 2 . 1 Wheel . | . . . Hover . | . . . Flight . | . . . Utility 11 | . 3 8 Device 6 | . 2 4 Storage 3 | . 1 2 Processor . | . . . Hackware . | . . . Protection 2 | . . 2 Artifact . | . . . Weapon 13 | 2 3 8 Energy Gun 9 | 2 2 5 Energy Cannon 3 | . . 3 Ballistic Gun . | . . . Ballistic Cannon . | . . . Launcher 1 | . 1 . Special Weapon . | . . . Impact Weapon . | . . . Slashing Weapon . | . . . Piercing Weapon . | . . . Special Melee Weapon . | . . . Unidentified Prototypes . | . . . Parts Lost . | . . . Power . | . . . Propulsion . | . . . Utility . | . . . Weapon . | . . . Highest Loss Streak . | . . . Average Slot Usage (%) 94 | . 97 92 Engine 11 | . 14 10 Leg 23 | . 28 20 Device 21 | . 12 26 Storage 10 | . 12 9 Protection 5 | . . 7 Energy Gun 9 | . 14 6 Energy Cannon 5 | . . 8 Launcher 4 | . 13 . Naked Turns . | . . . Heaviest Build 29 | 8 16 29 Greatest Support 40 | 20 20 40 Greatest Overweight (x) 2 | . . 2 Average Overweight (x) . | . . . Largest Inventory Capacity 4 | 4 4 4 Average Capacity 3 | 3 4 4 Most Carried 4 | 4 4 4 Average Carried 2 | . 1 2 Final Capacity 4 | 4 4 4 Final Carried 4 | . 4 4 Class Distribution -------------------- 86% | Mutant 13% | Scavenger-Mutant Dominant Class ---------------- Mutant | -10/Materials Mutant | -9/Materials Resources | -11 -10 -9 ----------- Run | Scr Mat Mat Matter Collected 750 | 250 290 210 Remotely . | . . . Salvage Created 2002 | . 318 1684 Parts 140 | . 23 117 Haulers Intercepted 4 | . . 4 Recyclers Shooed 1 | . . 1 Parts Field Recycled . | . . . Retrieved Matter . | . . . Parts Self-Destructed . | . . . Prevented . | . . . Kills | -11 -10 -9 ------- Run | Scr Mat Mat Combat Hostiles Destroyed 58 | . 10 48 Guns 27 | . 8 19 Cannons 29 | . . 29 AOE 2 | . 2 . Classes Destroyed 8 | . 4 4 Builder 2 | . 2 . Hauler 4 | . . 4 Watcher 4 | . 1 3 Swarmer 15 | . 3 12 Grunt 32 | . 7 25 Duelist 1 | . . 1 Protector 1 | . . 1 Sentry 9 | . . 9 Best Kill Streak 5 | . 5 5 Combat Bots Only 5 | . 3 5 Max Kills in Single Turn 5 | . 5 1 Gunslinging . | . . . Exploded 2 | . 2 . Melee . | . . . Uniques/NPCs Destroyed . | . . . Combat | -11 -10 -9 -------- Run | Scr Mat Mat Damage Taken 1579 | . 278 1301 Core 1177 | . 225 952 Absorbed by Shields . | . . . Redirected to Core 850 | . 155 695 Core Remaining (%) 86 | 100 73 . Volleys Fired 153 | . 31 122 Largest 2 | . 2 2 Hottest 136 | . 70 136 Shots Fired 269 | . 34 235 Gun 132 | . 31 101 Cannon 134 | . . 134 Launcher 3 | . 3 . Special . | . . . Kinetic . | . . . Thermal 260 | . 25 235 Explosive 3 | . 3 . Electromagnetic 6 | . 6 . Robot Hit Streak 28 | . 8 28 Robot Miss Streak 3 | . 2 3 Penetration Max . | . . . Secondary Targets 2 | . . 2 Max Gunslinging Chain 1 | . . 1 Shots Hit Robots 195 | . 28 167 Core Hits 89 | . 18 71 Critical Hits 4 | . . 4 Critical Kills 1 | . . 1 Critical Parts Destroyed 3 | . . 3 Melee Attacks . | . . . Impact . | . . . Slashing . | . . . Piercing . | . . . Sneak Attacks . | . . . Combat Hostiles . | . . . Follow-up Attacks . | . . . Damage Inflicted 3739 | . 750 2989 Guns 1374 | . 355 1019 Cannons 1956 | . . 1956 Explosions 395 | . 395 . Melee . | . . . Ramming 14 | . . 14 Kinetic . | . . . Thermal 3336 | . 361 2975 Explosive 321 | . 321 . Electromagnetic 68 | . 68 . Impact . | . . . Slashing . | . . . Piercing . | . . . Highest Corruption . | . . . Average Corruption . | . . . Corruption Purged . | . . . Overload Shots . | . . . Overflow Damage 79 | . 43 36 Projectiles 36 | . . 36 Explosions 43 | . 43 . Melee . | . . . Knockbacks . | . . . Impact . | . . . Kinetic . | . . . Secondary . | . . . Self-Inflicted Damage . | . . . Shots . | . . . Rammed . | . . . Targets Rammed 4 | . . 4 Kicked 4 | . . 4 Crushed . | . . . Highest Temperature 264 | . 264 225 Average Temperature 82 | . 98 79 Received Heat Transfer 657 | . 108 549 Effects 1 | . 1 . Interference 1 | . 1 . Siege Activations . | . . . Robots Corrupted . | . . . Combat Hostiles . | . . . Parts Fried . | . . . Impact Corruptions . | . . . Robots Melted . | . . . Combat Hostiles . | . . . Parts Melted 13 | . 1 12 Heat Transferred 6891 | . 790 6101 Parts Sabotaged . | . . . Parts Stolen . | . . . Parts Stripped . | . . . Power Chain Reactions . | . . . Missiles Intercepted . | . . . Alert | -11 -10 -9 ------- Run | Scr Mat Mat Peak Influence 663 | . 139 663 Initial . | . . . Average 220 | . 75 304 Maximum Alert Level 2 | . . 2 Low Security (%) 61 | 100 100 39 Level 1 14 | . . 22 Level 2 24 | . . 38 Level 3 . | . . . Level 4 . | . . . Level 5 . | . . . High Security . | . . . Max Security . | . . . Squads Dispatched 10 | . 2 8 Investigation 5 | . 2 3 Extermination . | . . . Reinforcement 4 | . . 4 Assault 1 | . . 1 Garrison . | . . . Intercept . | . . . Construction Impeded . | . . . Haulers Reinforced . | . . . Stealth | -11 -10 -9 --------- Run | Scr Mat Mat Distress Signals 11 | . 2 9 Communications Jammed . | . . . Distress Signals . | . . . Times Spotted 95 | . 20 75 Peak Tracking Total 5 | . 4 5 Tactical Retreats 6 | . . 6 Traps | -11 -10 -9 ------- Run | Scr Mat Mat Traps Triggered 3 | . 1 2 Indirectly . | . . . Trap Hack Attempts . | . . . Triggered . | . . . Disarmed . | . . . Reprogrammed . | . . . Reused . | . . . Traps Extracted . | . . . Installed . | . . . Triggered . | . . . Machines | -11 -10 -9 ---------- Run | Scr Mat Mat Machines Disabled 2 | . 1 1 Max in Single Turn 1 | . 1 1 Machines Sabotaged . | . . . Garrisons Compromised . | . . . Overloaded Fab Kills . | . . . Fab Network Shutdowns . | . . . Hacking | -11 -10 -9 --------- Run | Scr Mat Mat Machines Accessed 17 | . 10 7 Terminals 13 | . 8 5 Fabricators . | . . . Repair Stations . | . . . Recycling Units 3 | . 2 1 Scanalyzers 1 | . . 1 Garrison Access . | . . . Total Hacks 47 | . 25 22 Successful 27 | . 13 14 Failed 19 | . 12 7 Catastrophic 2 | . 2 . Database Lockouts 1 | . . 1 Manual 28 | . 13 15 Terminals 41 | . 21 20 Fabricators . | . . . Repair Stations . | . . . Recycling Units 5 | . 4 1 Scanalyzers 1 | . . 1 Garrison Access . | . . . Terminal Hacks 12 | . 5 7 Prototype ID Bank 5 | . 2 3 Branch Access Points 1 | . 1 . Machine Index 1 | . . 1 Alert Level 2 | . 1 1 Unreport Threat 3 | . 1 2 Fabricator Hacks . | . . . Repair Station Hacks . | . . . Recycling Unit Hacks 2 | . 1 1 Retrieve Components 2 | . 1 1 Scanalyzer . | . . . Garrison Access Hacks . | . . . Unauthorized Hacks 12 | . 6 6 Terminals 11 | . 6 5 Botnet 11 | . 6 5 Fabricators . | . . . Repair Stations . | . . . Recycling Units . | . . . Scanalyzers 1 | . . 1 Extract 1 | . . 1 Garrison Access . | . . . Data Cores Recovered . | . . . Used . | . . . Hacking Detections 14 | . 10 4 Full Trace Events 2 | . 2 . Feedback Events . | . . . Feedback Blocked . | . . . Robot Schematics Acquired . | . . . Robots Built . | . . . Matter . | . . . Time . | . . . Total Robot Build Rating . | . . . Part Schematics Acquired 4 | . . 4 Parts Built . | . . . Matter . | . . . Time . | . . . Total Part Build Rating . | . . . Parts Repaired . | . . . Time . | . . . Parts Recycled . | . . . Recycled Matter . | . . . Retrieved Matter . | . . . Retrieved Components 20 | . 10 10 Parts Scanalyzed . | . . . Part Schematics Acquired . | . . . Parts Damaged . | . . . Bothacking | -11 -10 -9 ------------ Run | Scr Mat Mat Used RIF Installer . | . . . Robots Hacked . | . . . Non-combat . | . . . Combat . | . . . Robot Hacks Applied . | . . . Relay Couplers Released . | . . . Robots Rewired . | . . . Allies Hacked . | . . . Hacks Repelled . | . . . Allies | -11 -10 -9 -------- Run | Scr Mat Mat Total Allies . | . . . Largest Group . | . . . Highest-Rated Group . | . . . Highest-Rated Ally . | . . . Total Orders . | . . . Ally Attacks . | . . . Total Damage . | . . . Kills . | . . . Allies Corrupted . | . . . Allies Melted . | . . . Intel | -11 -10 -9 ------- Run | Scr Mat Mat Robot Analysis Total . | . . . Derelict Logs Recovered . | . . . Drone Launches . | . . . Drone Recoveries . | . . . Exploration | -11 -10 -9 ------------- Run | Scr Mat Mat Turns Passed 3401 | 43 1191 2167 Spaces Moved 2149 | 39 906 1204 Core 19 | 19 . . Treads 30 | . . 30 Legs 2100 | 20 906 1174 Wheels . | . . . Hover . | . . . Flight . | . . . Fastest Speed 50 | 50 120 120 Average Speed 122 | 85 120 125 Slowest Speed 180 | 120 120 180 Overloaded Moves . | . . . Propulsion Burnouts . | . . . Robots Hopped . | . . . Cave-ins Triggered . | . . . Exploration Rate (%) 61 | 3 97 85 Regions Visited 2 Branch Regions . Pre-discovered Areas . | . . . Known Exits Taken . | . . . Unknown Exits Taken 2 | 1 1 . Scrap Searched . | . . . Spaces Dug . | . . . Terrain Destroyed 19 | . 19 . Melee . | . . . Projectile . | . . . AOE 19 | . 19 . Terrain Rammed . | . . . Walls Destroyed . | . . . Machines Disabled . | . . . Actions | -11 -10 -9 --------- Run | Scr Mat Mat Total 2654 | 48 976 1630 Wait 200 | . 18 182 Move 2147 | 38 905 1204 Hop . | . . . Pick Up 29 | 5 9 15 Fast Attach 6 | . . 6 Attach 19 | 5 4 10 Detach . | . . . Swap 7 | . 2 5 Drop 20 | . 3 17 Fire 153 | . 31 122 Melee . | . . . Ram . | . . . Kick 4 | . . 4 Crush . | . . . Escape Stasis . | . . . Rewire . | . . . Trap . | . . . Miscellaneous 69 | . 4 65 Route ------- -11/Scrapyard -10/Materials (discovered 3 exits: *Mat x2 / *Min) -9/Materials (discovered 4 exits: [*Mat x3] / [*Min]) History --------- Turn | Location | Event 5 | -11/Scrapyard | Upgraded with Propulsion slot (x1) 5 | -11/Scrapyard | Upgraded with Utility slot (x1) 5 | -11/Scrapyard | Upgraded with Weapon slot (x1) 6 | -11/Scrapyard | Discovered new exit (range 15) 44 | -11/Scrapyard | Entered Materials 59 | -10/Materials | Identified exit to Mines 310 | -10/Materials | Build established: Mutant 862 | -10/Materials | Discovered new exit (range 7) 1210 | -10/Materials | Discovered new exit (range 13) 1235 | -10/Materials | Entered another Materials area 1237 | -9/Materials | Reached level 2 1237 | -9/Materials | Reached level 3 1237 | -9/Materials | Reached level 4 1238 | -9/Materials | Upgraded with Power slot (x1) 1238 | -9/Materials | Upgraded with Utility slot (x3) 1600 | -9/Materials | Reached level 5 1607 | -9/Materials | Upgraded with Propulsion slot (x1) 1681 | -9/Materials | Discovered new exit (range 16) 2019 | -9/Materials | Discovered new exit (range 4) 2061 | -9/Materials | Central database locked down 2241 | -9/Materials | Reached level 6 2465 | -9/Materials | Reached level 7 2483 | -9/Materials | Upgraded with Utility slot (x1) 2544 | -9/Materials | Discovered new exit (range 7) 2886 | -9/Materials | Reached level 8 3022 | -9/Materials | Discovered new exit (range 16) 3235 | -9/Materials | First assault squad dispatched 3263 | -9/Materials | Build established: Scavenger-Mutant 3360 | -9/Materials | Core integrity fell below 50% 3402 | -9/Materials | Self-destructed Last Messages --------------- 03345_ Lgt. Treads severed. 03347_ I-25 Savior destroyed. 03350_ L-31 Rogue destroyed. 03353_ K-01 Serf collects debris. 03356_ G-47 Trooper destroyed. 03359_ G-34 Mercenary destroyed. 03361_ K-01 Serf collects debris. 03362_ G-34 Mercenary suffers critical hit. 03362_ Destroyed Ion Engine. 03365_ G-34 Mercenary destroyed. 03365_ K-01 Serf collects debris. 03371_ Dropped Med. Battery. 03373_ Acquired 30 matter. 03375_ K-01 Serf collects debris. 03376_ Acquired Lgt. Treads. 03378_ Acquired 6 matter. 03382_ R-06 Scavenger collects Lgt. Cannon. 03390_ Used Protomatter to restore core integrity (+174, depleted) 03391_ Acquired 4 matter. [Achievement: Overachiever] Map ----- +----------------------------------------------------+ | ????????????????????????# #???????????? | | ????????????????????????# #???????????? | | ????????????????????????# #???????????? | | ????????????????????????# #???????????? | | ??????????????????????### #???????????? | | ??????????????????????# #####???????? | | ??????????????????????# # ????????? | | ##????????????????????# #????????? | | #?????????????????#### # #?????????? | | #????????????????##%% #?#?????????? | | #????????????????#% t#???###?????? | | ##???????????????#% #####+####??? | | #???????????????#% # #??? | | #????????????????#% # """ #??? | | #????????????????##%% # """ #??? | | #?????????????????#### t # " " #??? | | #????????############# # #??? | | ##????????# # +% "#??? | | ########### "" # #= T#??? | | # "" # # "#??? | | "" [[ T # "T """ # # #??? | | "" [[ # "" """ # #####+####??? | | "" # "" """ + % # #?????? | | ^ # # # ###????? | | ####+####?############# # #????? | | ???# #????????????????# t@# #????? | | ???# #?#####??????????# # #????? | | #### ### ==#?????###### + #????? | | ==#?????# # ########????? | | **#?????# T # o #! #????? | | **#?????# # %#= ///#????? | | +###+#% !#?????#^ # =%# * ///#????? | | #=! !!#?????# + = + !=// #????? | | """[/ ########### # !!#!* #????? | | """ #%## # #+ # %#![ #????? | | """ #%# # #k ########????? | | #%# # # #???????????? | | ! #%# ###### #???????????? | | ###### ##+########????# #???????????? | | """ +=== #??????????## ##??????????? | | """ ####%#??????????#%= #??????????? | | """ #??#%############] = # #???? | | #??#% ]]% ] + #???? | | ####+############] # #???? | | ## #???????#= ## ####???? | | #/##### #???????#######??##??????? | | # #???# !! #????????????????????????? | | # #???# ! #????????????????????????? | | # #???# #????????????????????????? | | # #???# #????????????????????????? | +----------------------------------------------------+ Best States ------------- Heat Dissipation 35 Coolant Potential 50 Energy Generation 17 Energy Capacity 715 Matter Stores 500 Matter Capacity 500 Sight Range 16 Robot Scan Range 13 Terrain Scan Density 10 Armor Coverage 150 Resistance: KI 20 Resistance: TH 20 Resistance: EX 20 Resistance: EM 20 Resistance: I 20 Resistance: S 20 Resistance: P 20 Evasion (%) 50 Recoil Reduction 2 Offensive Hacking 10 Item Schematics ----------------- EM Pulse Gun | -9/Materials | Extracted Imp. Treads | -9/Materials | Extracted Armor Integrity Analyzer | -9/Materials | Extracted Lgt. Cannon | -9/Materials | Extracted Robot Schematics ------------------ None Fabricated ------------ Nothing Alien Tech Used ----------------- None Achievements -------------- Overachiever Challenges ------------ None RPGLIKE | -11 -10 -9 --------- Run | Scr Mat Mat Levels Raised 7 | . . 7 XP Earned 15457 | 4000 1310 10147 XP Spent 10300 | 4000 . 6300 Upgrades 13 | 7 . 6 Power Slot 1 | . . 1 Propulsion Slot 2 | 1 . 1 Utility Slot 5 | 1 . 4 Weapon Slot 1 | 1 . . Inventory Capacity 4 | 4 . . Protomatter Created 677 | . 47 630 Integrity Restored 1332 | . 68 1264 Core 1034 | . 68 966 Parts 298 | . . 298 Protomatter Decayed 219 | . 24 195 Game ------ Seed HugeBottomlessRegulator Manual? 0 Play Time 00:43:05 Cumulative 414.0 hours Start 2020.11.06 @ 09:24:14 End 2020.11.06 @ 10:06:05 Sessions 1 Manual Loads 0 Difficulty Adventurer Special Mode Winter2019/RPGLIKE Game No. 26 Rogue 1 Adventurer 25 Explorer 0 Win Type - Total 2 Types 2/0/0/0/0/0/0/0/0 Lore% 55 Gallery% 43 Achievement% 51 Wizard Run 0 Options --------- ASCII 0 Keyboard 0 Movement Numpad Keybinds 0 Fullscreen 1 Font 18/SmallcapsGlow Map View 76x50 Tactical HUD 1 Map Filters NONE Filters NONE Steam 1 RUN: ab80448c-54d0-47c3-90b9-68948716512a